bitfinex-derivatives/quotes_ETHF0:USTF0_20260116
["timestamp","ask_amount","ask_price","bid_price","bid_amount"]
[1768574321605,0.00280747,3302.1,3300.4,0.53477496]
[1768574322712,0.00280747,3302.1,3300.6,0.53476496]
[1768574323509,0.00280747,3302.1,3300.7,0.38323496]
[1768574323702,0.54248418,3303.3,3301.1,0.38323496]
[1768574323906,0.39107418,3303.9,3301.5,0.15149]
[1768574324108,0.8963022,3303.8,3301.5,0.53472496]
[1768574324306,0.8963022,3303.7,3301.6,0.38323496]
[1768574324511,0.8963022,3303.6,3301.6,0.38323496]
[1768574324707,0.8963022,3303.5,3301.6,0.38323496]
[1768574325208,0.8963022,3303.5,3299.7,0.00268714]
[1768574325209,2.26489936,3303.0,3300.8,3.031]
[1768574325408,0.8963022,3302.9,3300.7,0.15153]
[1768574325612,1.28737638,3302.9,3300.7,0.15153]
[1768574325814,0.8963022,3302.8,3300.7,0.15153]
[1768574326811,0.39107418,3302.7,3300.6,40.8]
[1768574327015,1.28737638,3302.6,3300.6,40.8]
[1768574327217,0.8963022,3302.5,3300.4,0.38323496]
[1768574327616,2.92157738,3302.5,3300.4,0.38323496]
[1768574327810,0.8963022,3302.4,3300.4,0.38323496]
[1768574331217,0.8963022,3302.4,3300.5,0.44512776]
[1768574331415,0.42593685,3303.2,3301.2,0.44512776]
[1768574331616,0.90117736,3303.1,3301.3,0.44512776]
[1768574331816,0.90117736,3303.0,3301.3,0.44512776]
[1768574332015,0.90117736,3302.9,3301.3,0.44512776]
[1768574332217,0.90117736,3302.8,3301.3,0.44512776]
[1768574332419,0.42593685,3303.2,3301.3,0.44512776]
[1768574332715,0.9017163,3303.1,3301.3,0.44512776]
[1768574332917,0.9017163,3303.0,3301.3,0.44512776]
[1768574333216,0.9017163,3302.9,3301.4,0.59662776]
[1768574333418,0.0022359,3303.6,3302.0,0.15147]
[1768574333622,0.0022359,3303.6,3302.1,0.59658776]
[1768574333922,0.0022359,3303.6,3302.1,0.5991719]
[1768574334119,0.0022359,3303.6,3302.3,0.15145]
[1768574334321,2.73316096,3305.1,3302.6,0.44512776]
[1768574334618,6.48419076,3305.2,3302.6,0.44512776]
[1768574334619,0.42593685,3304.8,3302.6,0.44512776]
[1768574334820,0.90133746,3304.7,3302.6,0.44512776]
[1768574335125,1.32727431,3304.7,3302.6,0.44512776]
[1768574335419,1.32727431,3304.7,3302.1,0.00258414]
[1768574335420,0.15136,3304.4,3302.1,0.00258414]
[1768574335626,0.42593685,3304.2,3302.1,0.00258414]
[1768574335812,0.90133746,3304.1,3302.1,0.00258414]
[1768574336017,0.42593685,3304.0,3302.1,0.00258414]
[1768574336212,0.90133746,3303.9,3302.1,0.00258414]
[1768574336516,1.32727431,3303.9,3302.1,0.00258414]
[1768574336718,0.90133746,3303.8,3302.1,0.00258414]
[1768574337117,1.32727431,3303.8,3302.1,0.00258414]
[1768574337317,0.42593685,3303.8,3302.1,0.00258414]
[1768574337512,0.42593685,3303.1,3300.7,0.44512776]
[1768574337716,0.42593685,3302.8,3300.7,0.44512776]
[1768574337918,0.90399917,3302.7,3300.7,0.44512776]
[1768574338118,0.42593685,3303.4,3300.9,0.44512776]
[1768574338322,0.90377926,3303.3,3300.9,0.44512776]
[1768574338611,0.42593685,3303.4,3300.9,0.44512776]
[1768574338612,0.90377926,3303.2,3301.0,0.44512776]
[1768574338928,0.42593685,3303.4,3301.3,0.44512776]
[1768574339117,0.42593685,3303.2,3301.2,0.15151]
[1768574339423,0.42593685,3303.0,3300.9,0.00233694]
[1768574339625,0.42593685,3303.0,3300.9,0.4474647]
[1768574339828,0.15142,3303.2,3301.0,0.44512776]
[1768574340020,0.90376878,3303.1,3301.1,0.44512776]
[1768574340212,0.15142,3303.2,3301.1,0.44512776]
[1768574340520,0.90384758,3303.1,3301.2,0.44512776]
[1768574340728,2.11693685,3303.6,3301.4,0.44512776]
[1768574340920,2.11693685,3303.6,3301.3,0.1515]
[1768574340921,0.42593685,3303.2,3300.9,0.00233694]
[1768574341317,0.57735685,3303.2,3300.9,0.00233694]
[1768574341516,0.90412753,3303.1,3300.9,0.00233694]
[1768574341720,0.42593685,3303.1,3300.9,0.00233694]
[1768574342022,0.15142,3303.2,3301.0,0.15152]
[1768574342221,2.11693685,3303.6,3300.9,0.00233694]
[1768574342222,0.42593685,3303.6,3301.5,0.44512776]
[1768574342522,0.90446848,3303.5,3301.5,0.59661776]
[1768574342724,0.42593685,3303.6,3301.6,0.44512776]
[1768574342932,0.90447308,3303.5,3301.7,0.44512776]
[1768574343226,0.15138,3303.9,3301.7,0.44512776]
[1768574343527,0.90461439,3303.8,3301.9,0.44512776]
[1768574343728,0.15138,3303.9,3301.9,0.44512776]
[1768574343924,0.90470878,3303.8,3301.9,0.44512776]
[1768574344125,0.15138,3303.9,3301.9,0.44512776]
[1768574344326,0.90468398,3303.8,3301.9,0.44512776]
[1768574344523,0.15138,3303.9,3301.9,0.44512776]
[1768574344827,0.42593685,3304.3,3302.3,0.15145]
[1768574345023,0.42593685,3304.1,3302.3,0.15145]
[1768574345224,2.84992504,3304.6,3302.3,0.15145]
[1768574345424,0.90509463,3304.5,3302.3,0.15145]
[1768574345615,0.90509463,3304.4,3302.1,0.44512776]
[1768574345833,0.00243711,3304.7,3302.6,0.59656776]
[1768574346133,0.42593685,3304.5,3302.0,0.44512776]
[1768574346322,0.00243711,3304.7,3302.0,0.44512776]
[1768574346323,0.42593685,3304.2,3302.0,0.44512776]
[1768574346524,0.90521248,3304.1,3302.0,0.44512776]
[1768574346826,0.42593685,3304.2,3302.0,0.44512776]
[1768574347022,0.90491422,3304.1,3302.0,0.44512776]
[1768574347223,0.42593685,3303.9,3301.4,0.44512776]
[1768574347532,0.57733685,3303.5,3301.4,0.44512776]
[1768574347733,0.90485786,3303.4,3301.4,0.44512776]
[1768574347923,0.90476485,3303.3,3301.4,0.44512776]
[1768574348122,0.15141,3303.4,3301.4,0.44512776]
[1768574348322,0.90487214,3303.3,3301.4,0.44512776]
[1768574348633,0.15141,3303.4,3301.4,0.44512776]
[1768574348823,0.90509214,3303.3,3301.5,0.44512776]
[1768574349024,0.15141,3303.4,3301.5,0.44512776]
[1768574349219,5.18589411,3304.2,3301.5,0.44512776]
[1768574349220,0.15139,3303.8,3301.6,0.44512776]
[1768574349421,0.42593685,3304.1,3301.0,40.8]
[1768574349422,1.87194087,3302.8,3301.0,40.8]
[1768574350334,0.90979697,3302.7,3300.9,0.00233694]
[1768574350539,2.29787772,3302.8,3300.9,0.00233694]
[1768574350733,0.42593685,3302.6,3300.9,0.00233694]
[1768574350946,0.91013896,3302.5,3300.9,0.00233694]
[1768574351130,0.42593685,3302.6,3300.9,0.00233694]
[1768574351330,0.42593685,3302.2,3300.9,0.00233694]
[1768574351531,0.42593685,3302.0,3299.8,0.59669776]
[1768574351729,1.06158006,3301.9,3299.9,40.8]
[1768574351932,2.78204093,3301.8,3299.9,40.8]
[1768574352132,0.42593685,3302.0,3300.0,0.44512776]
[1768574352433,1.33576995,3301.9,3299.9,40.8]
[1768574352636,2.29787772,3301.3,3299.1,0.1516]
[1768574352830,0.90972876,3301.2,3299.1,0.15455905]
[1768574353026,0.42593685,3301.1,3299.1,0.00295905]
[1768574353227,1.33556892,3301.0,3299.1,0.00295905]
[1768574353434,0.90963207,3300.9,3299.1,0.00295905]
[1768574353639,0.42593685,3301.0,3299.1,0.00295905]
[1768574353831,0.908897,3300.9,3299.1,0.00295905]
[1768574354135,0.15151,3301.1,3299.1,0.44808681]
[1768574354335,1.87194087,3301.3,3299.1,0.44808681]
[1768574354531,3.45593685,3301.6,3299.3,0.44512776]
[1768574354736,0.90822648,3301.5,3299.3,0.44512776]
[1768574355039,0.90822648,3301.4,3299.3,0.44512776]
[1768574355243,0.42593685,3301.2,3299.2,0.1516]
[1768574355446,0.42593685,3301.2,3299.1,0.00295905]
[1768574355447,2.29787772,3300.8,3299.1,0.00295905]
[1768574356330,0.57746685,3300.7,3299.1,0.00295905]
[1768574356525,1.48434448,3300.7,3299.1,0.00295905]
[1768574356731,0.57746685,3300.7,3299.1,0.00295905]
[1768574356945,0.42593685,3300.6,3299.1,0.00295905]
[1768574357637,0.15153,3300.7,3299.1,0.00295905]
[1768574358636,0.42593685,3301.2,3299.1,0.00295905]
[1768574359034,0.42593685,3300.7,3299.1,0.00295905]
[1768574360239,0.42593685,3300.4,3298.0,3.47612776]
[1768574360444,0.42593685,3300.4,3298.1,40.8]
[1768574361037,0.42593685,3300.4,3298.1,41.24512776]
[1768574361546,0.42593685,3300.4,3298.2,0.44893032]
[1768574361844,0.61088411,3300.3,3298.1,40.80255597]
[1768574362141,0.45933411,3300.8,3298.1,0.45148629]
[1768574362343,0.15152,3301.1,3298.8,0.44893032]
[1768574362534,0.45933411,3301.0,3298.8,0.44893032]
[1768574363134,0.45933411,3301.0,3298.9,0.44893032]
[1768574363442,3.48933411,3301.6,3299.2,0.44893032]
[1768574364429,0.1515,3301.5,3299.2,0.44893032]
[1768574364641,0.45933411,3301.3,3299.2,0.44893032]
[1768574365347,0.1515,3301.4,3299.3,0.44893032]
[1768574365538,0.45933411,3301.3,3299.3,0.44893032]
[1768574365736,0.61083411,3301.3,3299.2,0.1516]
[1768574366239,0.45933411,3301.3,3298.8,0.44893032]
[1768574366438,0.15151,3301.1,3298.8,0.44893032]
[1768574366844,2.2242738,3300.3,3298.1,0.00255597]
[1768574367030,0.45933411,3300.2,3298.1,0.00255597]
[1768574367234,0.15157,3300.0,3298.1,0.00255597]
[1768574367542,0.15158,3299.7,3298.1,0.00255597]
[1768574367736,0.00234111,3299.7,3298.1,0.00255597]
[1768574367934,0.15158,3299.6,3298.1,0.00255597]
[1768574369248,0.64040541,3299.6,3298.1,0.00255597]
[1768574372749,0.48882541,3299.2,3296.9,3.49208248]
[1768574373150,0.48882541,3299.2,3297.0,40.8]
[1768574373352,0.48882541,3299.2,3297.0,41.26008248]
[1768574373642,0.1516,3299.3,3297.3,0.46008248]
[1768574373842,0.00234111,3299.7,3297.5,0.15168]
[1768574374549,0.15392111,3299.7,3297.5,0.15168]
[1768574375639,0.00234111,3299.7,3297.8,0.46008248]
[1768574376043,0.00234111,3299.7,3298.5,0.46008248]
[1768574376245,0.00234111,3299.7,3298.4,0.15163]
[1768574376550,0.48882541,3301.2,3299.0,0.46008248]
[1768574376752,3.78881157,3302.0,3299.0,0.46008248]
[1768574376753,0.64034541,3301.0,3299.0,40.8]
[1768574377238,0.48882541,3300.4,3298.1,0.15165]
[1768574377548,0.64037541,3300.4,3298.2,0.46008248]
[1768574377851,0.90578905,3300.3,3298.2,41.26008248]
[1768574378043,0.64362872,3300.4,3298.2,40.8]
[1768574378044,0.64038541,3300.1,3298.2,40.8]
[1768574378244,0.64038541,3300.1,3297.8,0.46008248]
[1768574378650,0.48882541,3300.1,3297.9,0.46008248]
[1768574378851,0.00325331,3300.4,3297.9,0.46008248]
[1768574379048,0.90658298,3300.3,3297.9,0.46008248]
[1768574379243,0.90658298,3300.3,3297.8,40.8]
[1768574379244,0.90658298,3300.2,3298.4,0.46008248]
[1768574379552,0.00325331,3300.4,3298.4,0.46008248]
[1768574379853,0.00325331,3300.4,3298.5,0.46008248]
[1768574380152,0.90877189,3300.3,3298.5,0.46008248]
[1768574380353,0.00325331,3300.4,3298.5,0.46008248]
[1768574380552,0.90888432,3300.3,3298.6,0.46008248]
[1768574380743,0.00325331,3300.4,3298.6,0.46008248]
[1768574381051,0.00325331,3300.4,3298.8,0.61170248]
[1768574381251,0.00325331,3300.4,3298.9,0.46008248]
[1768574381554,0.00325331,3300.4,3299.0,0.61169248]
[1768574381744,0.00325331,3300.4,3299.1,0.46008248]
[1768574382647,2.30738411,3301.7,3299.3,0.46008248]
[1768574382949,0.91045098,3301.6,3299.3,0.46008248]
[1768574383145,0.91045098,3301.5,3299.3,0.46008248]
[1768574383345,0.91045098,3301.4,3299.3,0.46008248]
[1768574383545,0.91045098,3301.3,3299.3,0.46008248]
[1768574383847,0.91045098,3301.2,3299.3,0.46008248]
[1768574384149,0.91045098,3301.1,3299.5,0.46008248]
[1768574384337,0.00311886,3301.4,3299.6,0.46008248]
[1768574384543,0.91028692,3301.3,3299.6,0.46008248]
[1768574384742,0.91028692,3301.2,3299.6,0.46008248]
[1768574384948,0.48882541,3301.0,3298.3,3.71301877]
[1768574385147,0.48882541,3300.8,3298.4,0.46008248]
[1768574385343,0.91028692,3300.7,3298.4,0.46008248]
[1768574385544,0.91028692,3300.6,3298.5,0.46008248]
[1768574385846,0.91028692,3300.5,3298.5,0.46008248]
[1768574386152,0.91028692,3300.4,3298.5,0.61171248]
[1768574386346,0.91028692,3300.3,3298.5,0.61171248]
[1768574386547,0.91028692,3300.2,3298.5,0.61171248]
[1768574386749,0.91028692,3300.1,3298.5,0.61171248]
[1768574386948,0.15154,3300.6,3298.5,0.61171248]
[1768574387139,0.48882541,3300.2,3297.9,0.46008248]
[1768574387344,1.39900377,3300.1,3297.9,0.46008248]
[1768574387550,0.91017836,3300.0,3298.3,0.46008248]
[1768574387742,0.91017836,3299.9,3298.3,0.46008248]
[1768574387944,0.48882541,3300.7,3298.3,0.46008248]
[1768574388140,0.48882541,3300.5,3298.2,0.15164]
[1768574388344,0.48882541,3299.8,3297.3,0.00245263]
[1768574388545,0.64040541,3299.6,3297.4,0.46008248]
[1768574388851,0.91010951,3299.5,3297.4,0.46008248]
[1768574389148,0.91010951,3299.4,3297.4,0.46008248]
[1768574389348,0.91010951,3299.3,3297.4,0.46008248]
[1768574389545,0.48882541,3299.1,3297.3,0.00245263]
[1768574389747,0.91010951,3299.0,3297.3,0.00245263]
[1768574389950,0.91010951,3298.9,3297.3,0.00245263]
[1768574390154,0.91010951,3298.8,3297.3,0.00245263]
[1768574390453,0.91010951,3298.7,3297.3,0.00245263]
[1768574390757,0.48882541,3298.5,3296.3,0.15173]
[1768574390946,0.91010951,3298.4,3296.3,0.15173]
[1768574391147,0.91010951,3298.3,3296.3,0.15173]
[1768574391347,0.91010951,3298.2,3296.3,0.15173]
[1768574391549,0.90846907,3298.1,3296.3,0.15173]
[1768574391750,0.48882541,3298.5,3296.3,0.15388176]
[1768574391955,0.90846499,3298.4,3296.3,0.15388176]
[1768574392149,0.90846499,3298.3,3296.3,0.15388176]
[1768574392346,0.479716,3298.1,3296.3,0.15388176]
[1768574392548,0.90782787,3298.0,3296.3,0.00215176]
[1768574392750,0.479716,3298.1,3296.3,0.00215176]
[1768574392949,0.90782697,3298.0,3296.3,0.47247812]
[1768574393149,0.15164,3298.3,3296.3,0.47247812]
[1768574393456,0.90730118,3298.2,3296.3,0.47247812]
[1768574393645,0.90730118,3298.1,3296.3,0.47247812]
[1768574393848,0.15164,3298.3,3296.3,0.47247812]
[1768574393849,0.90730118,3298.0,3296.3,0.47247812]
[1768574394142,0.15164,3298.3,3296.3,0.47247812]
[1768574394346,0.90698983,3298.2,3296.3,0.47247812]
[1768574394553,0.90698983,3298.1,3296.3,0.47247812]
[1768574394753,0.15164,3298.3,3296.3,0.47247812]
[1768574394959,0.90699084,3298.2,3296.3,0.47247812]
[1768574395159,0.479716,3298.0,3296.3,0.00215176]
[1768574395555,0.90669319,3297.9,3296.3,0.00215176]
[1768574395861,1.38639242,3297.8,3296.3,0.00215176]
[1768574396156,0.479716,3297.8,3296.3,0.00215176]
[1768574396663,0.479716,3297.3,3295.2,0.47032636]
[1768574396853,0.479716,3297.1,3294.7,0.62213636]
[1768574397054,0.479716,3296.9,3294.7,0.47032636]
[1768574397353,0.479716,3296.5,3294.1,0.47032636]
[1768574397553,0.90629476,3296.4,3294.1,0.47032636]
[1768574397748,0.0031318,3296.4,3294.1,0.47032636]
[1768574397959,0.0031318,3296.4,3294.1,0.47310392]
[1768574398956,0.0031318,3296.4,3294.1,0.62493392]
[1768574399163,0.0031318,3296.4,3294.1,0.47310392]
[1768574399854,0.0031318,3296.4,3294.3,0.47032636]
[1768574400256,0.0031318,3296.4,3294.6,0.62213636]
[1768574400463,0.0031318,3296.4,3294.2,40.8]
[1768574400762,0.0031318,3296.4,3294.4,0.47032636]
[1768574400959,0.0031318,3296.4,3294.6,0.47032636]
[1768574401163,0.0031318,3296.4,3294.8,0.47032636]
[1768574401466,0.0031318,3296.4,3294.5,40.8]
[1768574401467,0.0031318,3296.4,3295.2,0.47032636]
[1768574401761,0.0031318,3296.4,3295.1,0.15179]
[1768574401960,0.0031318,3296.4,3294.8,0.47032636]
[1768574403062,0.0031318,3296.4,3294.8,0.62212636]
[1768574403367,0.0031318,3296.4,3295.0,0.47032636]
[1768574403553,0.0031318,3296.4,3294.5,43.834]
[1768574403759,0.0031318,3296.4,3294.6,0.47032636]
[1768574404465,0.0031318,3296.4,3294.5,47.958]
[1768574404466,0.15167,3297.7,3295.3,0.15178]
[1768574404657,0.479716,3297.6,3295.3,0.15178]
[1768574405069,0.479716,3297.6,3295.3,0.62210636]
[1768574405571,0.15168,3297.4,3295.3,0.47032636]
[1768574405867,0.479716,3297.3,3295.3,0.47032636]
[1768574406162,0.479716,3297.3,3295.0,4.125]
[1768574406363,0.479716,3297.3,3295.2,0.47032636]
[1768574406669,0.15168,3297.4,3295.4,0.47032636]
[1768574406868,0.0028046,3297.6,3295.4,0.47032636]
[1768574407564,0.631426,3296.9,3294.9,3.035]
[1768574407868,0.631426,3296.9,3294.8,0.47032636]
[1768574408258,0.15171,3296.9,3294.8,0.47032636]
[1768574408556,0.1517,3297.1,3295.0,0.47032636]
[1768574408761,0.15171,3296.9,3294.6,4.122]
[1768574408961,0.631426,3296.9,3294.6,4.122]
[1768574409163,0.631426,3296.9,3294.6,0.47032636]
[1768574409467,0.631426,3296.9,3294.8,0.47032636]
[1768574411366,0.15171,3296.9,3294.8,0.47032636]
[1768574411864,0.631426,3296.9,3294.8,0.47032636]
[1768574412169,0.631426,3296.9,3294.8,4.59532636]
[1768574412669,0.631426,3296.9,3294.8,0.47032636]
[1768574413273,0.15171,3296.9,3294.9,0.47032636]
[1768574414566,0.15172,3296.7,3294.9,0.47032636]
[1768574414766,0.479716,3296.5,3294.4,4.59532636]
[1768574415074,0.15171,3296.9,3294.7,0.47032636]
[1768574415272,0.15171,3296.9,3294.9,0.47032636]
[1768574415874,0.15171,3296.9,3295.1,0.47032636]
[1768574416074,0.15168,3297.4,3295.2,0.47032636]
[1768574416261,0.90477469,3297.3,3295.2,0.47032636]
[1768574416466,0.90477469,3297.2,3295.2,0.47032636]
[1768574416670,0.90477469,3297.1,3295.2,0.47032636]
[1768574416970,0.479716,3297.5,3295.6,0.15176]
[1768574417171,0.90498744,3297.4,3295.7,0.47032636]
[1768574417374,0.0028046,3297.6,3295.7,0.47032636]
[1768574417567,1.5376489,3297.5,3295.2,4.121]
[1768574417870,0.15169,3297.3,3295.3,0.47032636]
[1768574418278,0.90742194,3297.2,3295.3,0.47032636]
[1768574418577,0.0028046,3297.6,3295.4,0.47032636]
[1768574418876,0.90758228,3297.5,3295.4,0.47032636]
[1768574419176,0.90758228,3297.4,3295.6,0.47032636]
[1768574419468,0.0028046,3297.6,3295.6,0.47032636]
[1768574419674,0.90867393,3297.5,3295.7,0.47032636]
[1768574419876,0.90867393,3297.4,3295.8,0.47032636]
[1768574420176,0.0028046,3297.6,3296.1,0.47032636]
[1768574420965,0.0028046,3297.6,3296.3,0.47032636]
[1768574421268,0.0028046,3297.6,3296.3,0.62205636]
[1768574421462,2.14926024,3298.9,3296.7,0.49269116]
[1768574421664,0.90956983,3298.8,3296.8,0.49269116]
[1768574421968,0.90956983,3298.7,3296.8,0.49269116]
[1768574422277,0.90956983,3298.6,3296.9,0.49269116]
[1768574422485,0.90956983,3298.5,3297.0,0.49269116]
[1768574422663,0.90956983,3298.4,3297.0,0.49269116]
[1768574422970,0.00341763,3298.6,3297.0,0.49269116]
[1768574423165,0.90944683,3298.5,3297.0,0.49269116]
[1768574423368,0.00341763,3298.6,3297.1,0.49269116]
[1768574423677,0.64545071,3299.6,3297.4,0.49269116]
[1768574423877,0.90932785,3299.5,3297.4,0.49269116]
[1768574424068,0.90932785,3299.4,3297.4,0.49269116]
[1768574424266,0.90932785,3299.3,3297.4,0.49269116]
[1768574424468,0.90932785,3299.2,3297.4,4.60469116]
[1768574424668,0.00327275,3299.2,3297.4,4.60469116]
[1768574425077,0.00327275,3299.2,3297.5,0.49269116]
[1768574425477,0.00327275,3299.2,3297.7,0.49269116]
[1768574426474,0.00327275,3299.2,3297.9,0.49269116]
[1768574427775,2.264948,3299.2,3297.3,0.49269116]
[1768574427976,0.91114239,3299.1,3297.3,0.49269116]
[1768574428175,2.264948,3299.2,3297.3,0.49269116]
[1768574428571,0.91095875,3299.1,3296.8,0.4756272]
[1768574428765,1.77107729,3299.2,3296.8,0.4756272]
[1768574428766,0.64550743,3298.8,3296.8,0.4756272]
[1768574428970,0.91095875,3298.7,3296.8,0.4756272]
[1768574429168,0.64550743,3298.8,3296.8,0.4756272]
[1768574429375,0.91078831,3298.7,3296.8,0.4756272]
[1768574429574,0.64550743,3298.8,3296.8,0.4756272]
[1768574429773,0.15162,3298.8,3296.9,0.47875498]
[1768574430171,0.49388743,3298.6,3296.9,0.00312778]
[1768574430378,0.49388743,3298.3,3296.9,0.00312778]
[1768574430972,0.49388743,3298.3,3295.8,4.104]
[1768574430973,0.49388743,3298.1,3295.5,40.95177]
[1768574431171,0.64554743,3297.9,3295.6,0.15177]
[1768574431370,0.64554743,3297.9,3295.6,0.6273972]
[1768574431572,0.64554743,3297.9,3295.8,0.4756272]
[1768574431777,0.64551743,3298.6,3296.2,0.4756272]
[1768574431979,0.91076022,3298.5,3296.2,0.47863541]
[1768574432278,0.91076022,3298.4,3296.2,0.47863541]
[1768574432579,0.49388743,3298.6,3296.5,0.4756272]
[1768574432781,3.52788743,3299.0,3296.8,0.4756272]
[1768574433077,0.49388743,3298.8,3296.8,0.4756272]
[1768574433377,0.49388743,3298.6,3296.7,0.15171]
[1768574434466,3.034,3299.0,3296.7,0.4756272]
[1768574434668,0.91108785,3298.9,3297.0,0.4756272]
[1768574434873,0.49716018,3299.2,3297.0,0.4756272]
[1768574435171,0.00327275,3299.2,3297.4,0.6273072]
[1768574436177,0.15161,3299.1,3297.0,40.8]
[1768574436373,0.49388743,3298.8,3296.7,0.15171]
[1768574436575,0.49388743,3298.4,3296.2,0.00300821]
[1768574436780,1.4045743,3298.3,3296.2,0.00300821]
[1768574436982,0.91068687,3298.2,3296.2,0.00300821]
[1768574437182,0.49388743,3298.3,3296.2,0.00300821]
[1768574437382,1.40402701,3298.2,3296.2,0.00300821]
[1768574437579,0.91013958,3298.1,3296.2,0.47863541]
[1768574437783,0.64549743,3298.9,3296.7,0.6273372]
[1768574437982,0.91033069,3298.8,3296.7,0.6273372]
[1768574438282,0.91033069,3298.7,3296.7,0.6273372]
[1768574438495,0.49388743,3298.8,3296.7,0.6273372]
[1768574438686,0.91047388,3298.7,3296.7,0.4756272]
[1768574438983,0.00327275,3299.2,3297.2,0.4756272]
[1768574439185,0.91064161,3299.1,3297.2,0.4756272]
[1768574439377,0.00327275,3299.2,3297.2,0.4756272]
[1768574439578,0.91080697,3299.1,3297.2,0.4756272]
[1768574439773,0.91079621,3299.0,3297.2,0.4756272]
[1768574439976,0.49388743,3298.8,3296.7,40.8]
[1768574440579,0.49388743,3298.8,3296.7,41.2756272]
[1768574440887,0.49388743,3298.8,3296.7,41.4273372]
[1768574441080,0.15161,3299.0,3296.8,0.4756272]
[1768574441277,0.91096583,3298.9,3296.8,0.4756272]
[1768574441474,1.06258583,3298.8,3296.8,0.4756272]
[1768574441678,0.91123518,3298.7,3296.8,0.4756272]
[1768574441987,0.00327275,3299.2,3297.1,0.4756272]
[1768574442285,0.91126577,3299.1,3297.1,0.4756272]
[1768574442485,0.91126577,3299.0,3297.1,0.4756272]
[1768574442688,0.91126577,3298.9,3297.1,0.4756272]
[1768574442883,0.00327275,3299.2,3297.1,0.4756272]
[1768574443186,0.91164353,3299.1,3297.1,0.4756272]
[1768574443377,0.00327275,3299.2,3297.4,0.4756272]
[1768574444185,0.00327275,3299.2,3297.6,0.4756272]
[1768574444383,0.15156,3300.1,3298.0,0.4756272]
[1768574444586,0.49388743,3300.5,3298.5,0.6272572]
[1768574444883,0.91301328,3300.4,3298.5,4.7272572]
[1768574445187,0.91301328,3300.3,3298.5,4.25163]
[1768574445385,0.91301328,3300.2,3298.5,4.25163]
[1768574445586,0.00383099,3300.3,3298.1,0.4756272]
[1768574445886,0.15156,3300.1,3298.2,7.132]
[1768574446086,0.49771842,3300.3,3298.3,0.4756272]
[1768574446287,0.49771842,3300.3,3298.2,7.132]
[1768574446288,0.91358347,3300.2,3298.5,0.4756272]
[1768574446482,0.00383099,3300.3,3298.5,0.4756272]
[1768574446683,0.91377807,3300.2,3298.5,0.6272572]
[1768574446995,0.00383099,3300.3,3298.5,0.4756272]
[1768574447185,0.91377463,3300.2,3298.5,0.4756272]
[1768574447487,0.00383099,3300.3,3298.5,0.4756272]
[1768574447683,0.91382598,3300.2,3298.5,0.4756272]
[1768574447882,0.00383099,3300.3,3298.5,0.4756272]
[1768574448087,0.91382419,3300.2,3298.5,0.4756272]
[1768574448291,0.00383099,3300.3,3298.5,0.4756272]
[1768574448782,0.00383099,3300.3,3298.7,0.4756272]
[1768574448982,0.00383099,3300.3,3298.7,0.47838521]
[1768574449382,0.00383099,3300.3,3298.7,0.63000521]
[1768574449886,0.00383099,3300.3,3299.0,0.6272372]
[1768574450084,0.00383099,3300.3,3299.1,0.4756272]
[1768574450687,0.00383099,3300.3,3299.3,0.6272172]
[1768574450884,6.6415,3301.5,3299.4,0.4756272]
[1768574451190,6.6415,3301.5,3299.6,0.4756272]
[1768574451191,0.91381885,3301.4,3299.6,0.4756272]
[1768574451385,0.91381885,3301.3,3299.8,0.4895002]
[1768574451591,0.50577397,3302.2,3300.1,0.6410602]
[1768574451888,0.91339631,3302.1,3300.1,3.1960602]
[1768574452093,0.91339631,3302.0,3300.3,0.4895002]
[1768574452285,0.00240563,3302.2,3300.3,0.4895002]
[1768574452487,0.91246438,3302.1,3300.3,7.6125002]
[1768574452688,0.91246438,3302.0,3300.3,7.6125002]
[1768574452889,0.00240563,3302.2,3300.4,0.4895002]
[1768574453079,0.00240563,3302.2,3300.6,0.4895002]
[1768574453284,0.00240563,3302.2,3300.8,0.4895002]
[1768574453493,0.50577397,3303.5,3301.0,0.4895002]
[1768574453688,0.91135289,3303.4,3301.0,0.4895002]
[1768574453885,0.15143,3302.9,3301.1,0.4895002]
[1768574454086,0.65720397,3302.9,3301.0,7.121]
[1768574454391,0.65962255,3302.9,3301.0,0.00310318]
[1768574454793,0.00241858,3302.9,3301.0,0.49260338]
[1768574455185,0.50819255,3302.9,3301.0,0.00310318]
[1768574455982,0.00241858,3302.9,3301.0,0.49260338]
[1768574456491,0.00241858,3302.9,3301.3,0.4895002]
[1768574456987,0.00241858,3302.9,3301.0,0.00310318]
[1768574457184,0.50819255,3302.9,3301.0,0.00310318]
[1768574457388,0.50577397,3302.8,3301.0,0.00310318]
[1768574458893,0.50577397,3302.5,3301.0,0.00310318]
[1768574459088,2.27357851,3302.4,3301.0,0.00310318]
[1768574459590,0.15147,3302.1,3300.1,0.4895002]
[1768574460700,0.15147,3302.1,3300.1,0.49222362]
[1768574461097,0.65724397,3302.1,3300.1,0.00272342]
[1768574461499,0.50577397,3302.7,3300.3,0.4895002]
[1768574461689,0.9067875,3302.6,3300.3,0.4895002]
[1768574461887,0.50577397,3302.7,3300.4,0.4895002]
[1768574462092,0.50577397,3302.7,3300.6,0.4895002]
[1768574462301,0.50577397,3302.4,3300.1,0.00272342]
[1768574462497,0.15145,3302.4,3300.4,0.4895002]
[1768574462897,0.50577397,3302.1,3300.1,0.00272342]
[1768574463100,0.65724397,3302.0,3300.1,0.00272342]
[1768574463303,1.76780454,3301.7,3300.1,0.00272342]
[1768574463596,0.65726397,3301.6,3300.1,0.00272342]
[1768574464000,0.50577397,3301.5,3300.1,0.00272342]
[1768574464201,0.50577397,3301.1,3298.7,0.4895002]
[1768574464405,2.27357851,3301.2,3298.7,0.4895002]
[1768574464406,2.27357851,3300.7,3298.7,0.4895002]
[1768574464707,0.50577397,3300.4,3298.4,0.15163]
[1768574465002,1.91932454,3301.0,3298.6,0.4895002]
[1768574465401,1.92169919,3301.0,3298.6,0.64394448]
[1768574465598,0.15389465,3301.0,3298.6,0.49231448]
[1768574466702,0.15389465,3301.0,3298.7,0.6411202]
[1768574466899,0.15153,3300.8,3298.7,0.6411202]
[1768574467200,0.50577397,3300.7,3298.7,0.6411202]
[1768574468104,2.42511851,3300.5,3298.6,0.00281428]
[1768574468404,0.65732397,3300.4,3298.6,0.00281428]
[1768574468599,0.50577397,3300.3,3298.6,0.00281428]
[1768574470107,0.50577397,3299.9,3297.6,0.4895002]
[1768574470299,0.90889659,3299.8,3297.8,0.15166]
[1768574470500,0.50577397,3299.9,3297.9,0.4895002]
[1768574470695,0.15155,3300.3,3298.1,0.4895002]
[1768574471013,0.90913718,3300.2,3298.1,0.4895002]
[1768574471204,0.15155,3300.3,3298.1,0.49167831]
[1768574471404,0.90958837,3300.2,3298.1,0.49167831]
[1768574471605,0.65732397,3300.3,3298.1,0.49167831]
[1768574471807,1.76780454,3299.9,3298.1,0.00217811]
[1768574472103,0.50577397,3299.8,3298.1,0.00217811]
[1768574475411,2.42515851,3299.7,3298.1,0.00217811]
[1768574475610,0.50577397,3299.6,3298.1,0.00217811]